bitfinex-derivatives/quotes_BTCF0:USTF0_20251206
["timestamp","ask_amount","ask_price","bid_price","bid_amount"]
[1765032707137,0.19883,90073.0,90072.0,0.19481]
[1765032708735,0.19683,90071.0,90070.0,0.05932401]
[1765032709237,0.19683,90071.0,90070.0,0.15507401]
[1765032710429,0.19883,90071.0,90070.0,0.15507401]
[1765032710740,0.19883,90071.0,90070.0,0.09575]
[1765032713032,0.19883,90071.0,90070.0,0.19481]
[1765032713737,0.2651714,90070.0,90069.0,0.19497658]
[1765032713942,0.6259714,90070.0,90069.0,0.19497658]
[1765032715533,0.6279714,90070.0,90069.0,0.00016658]
[1765032716041,0.6279714,90070.0,90069.0,0.09591658]
[1765032716745,0.6279714,90070.0,90069.0,0.19497658]
[1765032718343,0.6279714,90070.0,90069.0,0.25430059]
[1765032718843,0.61687,90070.0,90069.0,0.19497658]
[1765032719145,0.09858,90070.0,90069.0,0.19497658]
[1765032720143,0.002,90070.0,90069.0,0.19497658]
[1765032727849,0.09426,90070.0,90069.0,0.19497658]
[1765032728148,0.17823,90070.0,90069.0,0.19497658]
[1765032728450,0.23374,90070.0,90069.0,0.00016658]
[1765032728652,0.23374,90070.0,90069.0,0.09130658]
[1765032728850,0.23374,90070.0,90069.0,0.17967658]
[1765032731448,0.17823,90070.0,90069.0,0.25889351]
[1765032731754,0.09426,90070.0,90069.0,0.17967658]
[1765032732144,0.002,90070.0,90069.0,0.25889351]
[1765032732546,0.17823,90070.0,90069.0,0.25889351]
[1765032732743,0.09426,90070.0,90069.0,0.25889351]
[1765032733345,0.09426,90070.0,90069.0,0.25890938]
[1765032737158,0.002,90070.0,90069.0,0.25890938]
[1765032737451,0.09426,90070.0,90069.0,0.25890938]
[1765032737861,0.17823,90070.0,90069.0,0.25890938]
[1765032738356,0.23374,90070.0,90069.0,0.07939938]
[1765032738654,0.23374,90070.0,90069.0,0.00016658]
[1765032739050,0.23374,90070.0,90069.0,0.05959809]
[1765032739858,0.23374,90070.0,90069.0,0.00016658]
[1765032745461,0.23374,90070.0,90065.0,0.05943151]
[1765032745462,0.17623,90066.0,90065.0,0.05943151]
[1765032746652,0.17723,90066.0,90065.0,0.23894151]
[1765032747261,0.17723,90066.0,90065.0,0.17951]
[1765032749166,0.17723,90066.0,90065.0,0.23889982]
[1765032751966,0.17723,90066.0,90065.0,0.05938982]
[1765032752668,0.17723,90066.0,90065.0,0.05822324]
[1765032752869,0.2069533,90055.0,90054.0,0.0792328]
[1765032753067,0.2069533,90055.0,90053.0,0.0792328]
[1765032753267,0.1687235,90053.0,90052.0,0.0792328]
[1765032754163,0.1687235,90053.0,90052.0,0.07861]
[1765032754364,0.1687235,90053.0,90051.0,0.4400328]
[1765032754365,0.0902131,90057.0,90056.0,0.16227]
[1765032754565,0.1687231,90057.0,90056.0,0.16227]
[1765032754770,0.0111026,90061.0,90056.0,0.16227]
[1765032754966,0.15778658,90064.0,90063.0,0.16227]
[1765032757170,0.00016658,90064.0,90063.0,0.16227]
[1765032757471,0.00116658,90064.0,90063.0,0.16227]
[1765032758268,0.51842,90079.0,90078.0,0.16227]
[1765032759967,0.52342,90079.0,90078.0,0.16227]
[1765032760358,0.52242,90079.0,90078.0,0.16227]
[1765032760558,0.16162,90079.0,90078.0,0.16227]
[1765032765162,0.004,90079.0,90078.0,0.20986]
[1765032766367,0.0037543,90079.0,90078.0,0.20986]
[1765032766573,0.15778658,90088.0,90087.0,0.16227]
[1765032767469,0.15778658,90088.0,90087.0,0.1733694]
[1765032767665,0.16078658,90088.0,90087.0,0.1733694]
[1765032770071,0.00316658,90088.0,90087.0,0.1733694]
[1765032771377,0.00116658,90088.0,90087.0,0.1733694]
[1765032772863,0.3608,90096.0,90095.0,0.0110984]
[1765032773067,0.51842,90105.0,90104.0,0.1733673]
[1765032774679,0.52442,90105.0,90104.0,0.1743673]
[1765032776479,0.51842,90105.0,90104.0,0.1733673]
[1765032776781,0.52242,90105.0,90104.0,0.1733673]
[1765032777174,0.51942,90105.0,90104.0,0.1733673]
[1765032777377,0.56131,90105.0,90104.0,0.1733673]
[1765032778472,0.51942,90105.0,90104.0,0.1733673]
[1765032779972,0.56166,90105.0,90104.0,0.1733673]
[1765032781579,0.56166,90105.0,90104.0,0.07861]
[1765032781881,0.14329,90099.0,90098.0,0.15467198]
[1765032782082,0.14329,90099.0,90098.0,0.65941]
[1765032782779,0.14329,90096.0,90095.0,0.00016648]
[1765032790074,0.07313,90096.0,90095.0,0.14381648]
[1765032790274,0.40404,90105.0,90104.0,0.0699]
[1765032790479,0.54733,90105.0,90104.0,0.14365]
[1765032791985,0.54833,90105.0,90104.0,0.14365]
[1765032793289,0.54833,90105.0,90104.0,0.2028175]
[1765032794784,0.54833,90105.0,90104.0,0.14365]
[1765032797582,0.14329,90096.0,90095.0,0.07923134]
[1765032797780,0.14329,90096.0,90095.0,0.00016648]
[1765032798498,0.14329,90096.0,90095.0,0.07006648]
[1765032800289,0.14329,90096.0,90095.0,0.14913134]
[1765032800996,0.14329,90096.0,90095.0,0.07006648]
[1765032801898,0.14329,90096.0,90095.0,0.22288134]
[1765032803700,0.14329,90096.0,90095.0,0.22292051]
[1765032804094,0.14329,90096.0,90095.0,0.14381648]
[1765032809791,0.14329,90096.0,90095.0,0.00016648]
[1765032812909,0.14329,90096.0,90095.0,0.06805648]
[1765032813406,0.14329,90096.0,90095.0,0.13670648]
[1765032815306,0.14329,90096.0,90095.0,0.57662303]
[1765032815608,0.14329,90096.0,90095.0,0.49750648]
[1765032818111,0.07313,90096.0,90095.0,0.49750648]
[1765032818512,0.13819,90096.0,90095.0,0.49750648]
[1765032820408,0.13819,90096.0,90095.0,0.42885648]
[1765032820810,0.13819,90096.0,90095.0,0.49750648]
[1765032823116,0.13819,90096.0,90095.0,0.36096648]
[1765032824417,0.13819,90096.0,90095.0,0.42885648]
[1765032824923,0.13819,90096.0,90095.0,0.49750648]
[1765032826425,0.13819,90096.0,90095.0,0.13670648]
[1765032827822,0.13819,90096.0,90095.0,0.00016648]
[1765032828017,0.13819,90096.0,90095.0,0.06805648]
[1765032828223,0.13819,90096.0,90095.0,0.13670648]
[1765032829328,0.13819,90096.0,90095.0,0.21590245]
[1765032830825,0.12432,90105.0,90104.0,0.12194]
[1765032831030,0.16174,90105.0,90104.0,0.12194]
[1765032832128,0.16274,90105.0,90104.0,0.12194]
[1765032833029,0.12532,90105.0,90104.0,0.12194]
[1765032833333,0.12532,90105.0,90104.0,0.2010723]
[1765032834133,0.001,90105.0,90104.0,0.12194]
[1765032834625,0.06375,90105.0,90104.0,0.12194]
[1765032834828,0.12532,90105.0,90104.0,0.12194]
[1765032835420,0.06375,90105.0,90104.0,0.12194]
[1765032836132,0.001,90105.0,90104.0,0.12194]
[1765032840635,0.06375,90105.0,90104.0,0.12194]
[1765032840938,0.12562,90105.0,90104.0,0.12194]
[1765032842140,0.12562,90105.0,90104.0,0.63758]
[1765032842827,0.12562,90105.0,90103.0,0.3608]
[1765032842828,0.12078,90104.0,90103.0,0.3608]
[1765032843031,0.12078,90104.0,90103.0,0.95544999]
[1765032843244,0.12078,90104.0,90103.0,0.8764]
[1765032844133,0.12078,90104.0,90103.0,0.93682]
[1765032844331,0.12078,90104.0,90103.0,0.99942]
[1765032845336,0.12078,90104.0,90103.0,0.63862]
[1765032845543,0.12178,90104.0,90103.0,0.63862]
[1765032849244,0.12178,90104.0,90103.0,0.71766999]
[1765032854644,0.12178,90104.0,90103.0,0.20206999]
[1765032854852,0.12178,90104.0,90103.0,0.12302]
[1765032859655,0.001,90104.0,90103.0,0.20206999]
[1765032860358,0.001,90104.0,90103.0,0.12302]
[1765032862456,0.15561,90104.0,90103.0,0.20216306]
[1765032869262,0.15561,90104.0,90103.0,0.12302]
[1765032871662,0.001,90104.0,90103.0,0.12302]
[1765032872056,0.0566,90104.0,90103.0,0.12302]
[1765032873065,0.10802,90104.0,90103.0,0.12302]
[1765032874366,0.0566,90104.0,90103.0,0.12302]
[1765032875357,0.10802,90104.0,90103.0,0.12302]
[1765032875766,0.0566,90104.0,90103.0,0.12302]
[1765032875965,0.10802,90104.0,90103.0,0.12302]
[1765032877377,0.13947,90104.0,90103.0,0.12302]
[1765032883359,0.13947,90104.0,90098.0,0.09905105]
[1765032883564,0.10702,90099.0,90098.0,0.21055105]
[1765032883765,0.10702,90099.0,90098.0,0.62702]
[1765032888287,0.10702,90099.0,90098.0,0.1115]
[1765032888487,0.10702,90099.0,90098.0,0.62702]
[1765032889485,0.10702,90099.0,90098.0,0.1115]
[1765032889688,0.118118,90098.0,90097.0,0.3608]
[1765032890188,0.10702,90098.0,90097.0,0.41627]
[1765032890382,0.10702,90098.0,90097.0,0.55146582]
[1765032892288,0.10702,90098.0,90097.0,0.4723]
[1765032894792,0.10702,90098.0,90097.0,0.1115]
[1765032903801,0.10702,90098.0,90097.0,0.10475]
[1765032907006,0.09804648,90114.0,90113.0,0.09976]
[1765032908205,0.10304648,90114.0,90113.0,0.09976]
[1765032909405,0.09904648,90114.0,90113.0,0.09976]
[1765032914398,0.09904648,90114.0,90113.0,0.1108562]
[1765032915810,0.00116648,90114.0,90113.0,0.1108562]
[1765032916004,0.05217648,90114.0,90113.0,0.1108562]
[1765032916312,0.09904648,90114.0,90113.0,0.1108562]
[1765032923413,0.09904648,90114.0,90113.0,0.4716562]
[1765032931014,0.00116648,90114.0,90113.0,0.4716562]
[1765032932428,0.00116648,90114.0,90113.0,0.55082202]
[1765032932818,0.00116648,90114.0,90113.0,0.19002202]
[1765032933121,0.00116648,90114.0,90113.0,0.55082202]
[1765032933533,0.00116648,90114.0,90113.0,0.4716562]
[1765032936627,0.00116648,90114.0,90113.0,0.57070725]
[1765032938123,0.04651648,90114.0,90113.0,0.57070725]
[1765032938731,0.09086648,90114.0,90113.0,0.57070725]
[1765032940322,0.09086648,90114.0,90113.0,0.4716562]
[1765032941332,0.09086648,90114.0,90113.0,0.57070725]
[1765032941532,0.09086648,90114.0,90113.0,0.4716562]
[1765032942535,0.09086648,90114.0,90113.0,0.57070725]
[1765032943829,0.09086648,90114.0,90113.0,1.08602725]
[1765032944335,0.09086648,90114.0,90113.0,0.9869762]
[1765032945336,0.09086648,90114.0,90113.0,1.08602725]
[1765032949542,0.09086648,90114.0,90113.0,0.9869762]
[1765032951240,0.04651648,90114.0,90113.0,0.9869762]
[1765032951433,0.09086648,90114.0,90113.0,0.9869762]
[1765032954444,0.09086648,90114.0,90113.0,1.08602725]
[1765032955944,0.09086648,90114.0,90113.0,1.08598725]
[1765032956347,0.09086648,90114.0,90113.0,0.9869362]
[1765032956646,0.09086648,90114.0,90113.0,1.08598725]
[1765032957747,0.09086648,90114.0,90113.0,0.9869362]
[1765032961646,0.0930764,90111.0,90110.0,0.09905105]
[1765032961949,0.08198,90106.0,90105.0,0.51528]
[1765032962146,0.08198,90106.0,90105.0,0.59440542]
[1765032963254,0.08198,90106.0,90105.0,0.51528]
[1765032963555,0.08198,90106.0,90105.0,0.54083]
[1765032965046,0.08298,90106.0,90105.0,0.54083]
[1765032965246,0.08298,90106.0,90105.0,0.56638]
[1765032970953,0.08198,90099.0,90098.0,0.02555]
[1765032971152,0.04035,90099.0,90098.0,0.0511]
[1765032971357,0.08198,90099.0,90098.0,0.0511]
[1765032981052,0.02501,90100.0,90095.0,0.05126648]
[1765032981053,0.10699,90096.0,90095.0,0.05126648]
[1765032985371,0.10699,90096.0,90095.0,0.02571648]
[1765032985759,0.10699,90096.0,90095.0,0.05126648]
[1765032992778,0.10699,90096.0,90095.0,0.1303919]
[1765032998584,0.10699,90096.0,90095.0,0.05126648]
[1765032999580,0.09786,90100.0,90099.0,0.0382579]
[1765033000681,0.09786,90100.0,90099.0,0.02716]
[1765033001789,0.09786,90100.0,90099.0,0.01358]
[1765033002090,0.09786,90100.0,90099.0,0.02716]
[1765033002484,0.09786,90100.0,90099.0,0.01358]
[1765033005478,0.09786,90100.0,90099.0,0.02716]
[1765033011794,0.09786,90100.0,90099.0,0.01358]
[1765033015704,0.09401,90096.0,90095.0,0.00016648]
[1765033018592,0.09401,90096.0,90095.0,0.00840648]
[1765033020708,0.09401,90096.0,90095.0,0.00428648]
[1765033023308,0.09401,90096.0,90095.0,0.00016648]
[1765033029906,0.09401,90096.0,90084.0,0.52617717]
[1765033029907,0.097239,90090.0,90084.0,0.52617717]
[1765033030110,0.06587,90085.0,90084.0,0.52617717]
[1765033030702,0.06587,90085.0,90084.0,0.52907717]
[1765033031207,0.06587,90085.0,90084.0,0.53197717]
[1765033032111,0.06587,90085.0,90084.0,0.53397717]
[1765033032609,0.06587,90085.0,90084.0,0.53197717]
[1765033032810,0.06587,90085.0,90084.0,0.53397717]
[1765033041816,0.06587,90085.0,90084.0,0.63306298]
[1765033042118,0.06587,90085.0,90084.0,0.53397717]
[1765033042321,0.06587,90085.0,90084.0,0.01293717]
[1765033042504,0.06587,90085.0,90084.0,0.53397717]
[1765033042705,0.06587,90085.0,90084.0,0.01293717]
[1765033047522,0.06587,90085.0,90084.0,0.002]
[1765033047825,0.06587,90077.0,90076.0,0.09908581]
[1765033048021,0.08614,90076.0,90073.0,0.61432581]
[1765033048217,0.08614,90076.0,90073.0,0.51524]
[1765033048419,0.08614,90076.0,90074.0,0.01104198]
[1765033048627,0.08614,90076.0,90073.0,0.07926392]
[1765033048927,0.08614,90076.0,90073.0,0.09046497]
[1765033049328,0.08614,90076.0,90075.0,0.00316648]
[1765033058432,0.05844,90071.0,90070.0,0.51524]
[1765033058621,0.05844,90071.0,90070.0,0.51407342]
[1765033059531,0.0695413,90071.0,90070.0,0.51407342]
[1765033059938,0.0695413,90071.0,90070.0,0.51707342]
[1765033060530,0.0695413,90071.0,90070.0,0.51407342]
[1765033060731,0.0715413,90071.0,90070.0,0.51407342]
[1765033067446,0.0715413,90071.0,90070.0,0.57344914]
[1765033069252,0.0715413,90071.0,90070.0,0.51407342]
[1765033074461,0.06044,90071.0,90070.0,0.51407342]
[1765033075254,0.002,90071.0,90070.0,0.51407342]
[1765033075459,0.002,90071.0,90070.0,0.59333734]
[1765033076261,0.03099,90071.0,90070.0,0.51407342]
[1765033077062,0.002,90071.0,90070.0,0.51407342]
[1765033082361,0.002,90071.0,90070.0,1.23567342]
[1765033084770,0.002,90071.0,90070.0,0.87487342]
[1765033085363,0.002,90071.0,90070.0,0.97384523]
[1765033088574,0.002,90071.0,90070.0,0.61304523]
[1765033088873,0.03127,90071.0,90070.0,0.97384523]
[1765033089072,0.002,90071.0,90070.0,0.97384523]
[1765033091976,0.03127,90071.0,90070.0,0.97384523]
[1765033093477,0.03127,90071.0,90070.0,0.87487342]
[1765033094076,0.05923,90071.0,90070.0,0.45975279]
[1765033094275,0.05923,90071.0,90070.0,0.61415279]
[1765033096878,0.05923,90071.0,90070.0,0.5152]
[1765033106680,0.05723,90067.0,90066.0,0.0112499]
[1765033106879,0.05723,90067.0,90066.0,0.5152]
[1765033107080,0.05723,90064.0,90063.0,0.00012294]
[1765033107279,0.41803,90064.0,90063.0,0.00012294]
[1765033108289,0.41803,90064.0,90063.0,0.05958343]
[1765033108579,0.42003,90064.0,90063.0,0.05958343]
[1765033109184,0.42003,90064.0,90063.0,0.00012294]
[1765033114590,0.05558,90057.0,90056.0,0.05946049]
[1765033114797,0.0843732,90056.0,90055.0,0.05946049]
[1765033114984,0.4451732,90056.0,90055.0,0.05946049]
[1765033115487,0.44530569,90056.0,90055.0,0.05946049]
[1765033116894,0.44630569,90056.0,90055.0,0.05946049]
[1765033117399,0.44630569,90056.0,90052.0,0.01110167]
[1765033117400,0.05558,90053.0,90052.0,0.01110167]
[1765033117592,0.05558,90049.0,90048.0,0.07930234]
[1765033118391,0.0843742,90048.0,90047.0,0.5262838]
[1765033118592,0.4451742,90048.0,90047.0,0.5262838]
[1765033120189,0.4451742,90048.0,90047.0,0.0110438]
[1765033120394,0.05558,90047.0,90046.0,0.00027764]
[1765033121893,0.05558,90047.0,90046.0,0.01113422]
[1765033122896,0.05558,90047.0,90046.0,0.01213422]
[1765033134203,0.05558,90047.0,90046.0,0.09131793]
[1765033134901,0.05558,90047.0,90046.0,0.01213422]
[1765033135300,0.05558,90047.0,90046.0,0.09145988]
[1765033136294,0.05558,90047.0,90046.0,0.01213422]
[1765033172643,0.05558,90047.0,90046.0,0.00127764]
[1765033174936,0.0575,90044.0,90043.0,0.03575821]
[1765033175548,0.07474,90039.0,90038.0,0.39047]
[1765033176755,0.07474,90039.0,90038.0,0.39147]
[1765033177046,0.0858453,90039.0,90038.0,0.39147]
[1765033177437,0.0858453,90039.0,90038.0,0.42088]
[1765033179446,0.0858453,90039.0,90038.0,0.43208678]
[1765033180348,0.07474,90039.0,90038.0,0.43208678]
[1765033181249,0.07474,90039.0,90038.0,0.37300678]
[1765033181550,0.07474,90039.0,90038.0,0.43208678]
[1765033185349,0.0575,90039.0,90038.0,0.43208678]
[1765033187846,0.07474,90039.0,90038.0,0.43208678]
[1765033193863,0.07474,90039.0,90038.0,0.07128678]
[1765033194159,0.07474,90039.0,90038.0,0.43208678]
[1765033197963,0.04584,90045.0,90044.0,0.05498]
[1765033198258,0.07369,90045.0,90044.0,0.05498]
[1765033200252,0.07369,90045.0,90044.0,0.13443131]
[1765033205963,0.0111018,90067.0,90044.0,0.13443131]
[1765033205964,0.02783249,90056.0,90055.0,0.05752]
[1765033206172,0.05760249,90056.0,90055.0,0.0686233]
[1765033206665,0.00013249,90056.0,90055.0,0.0686233]
[1765033207554,0.00213249,90056.0,90055.0,0.0686233]
[1765033211264,0.0111006,90078.0,90057.0,0.05752]
[1765033211464,0.05747,90078.0,90077.0,0.05752]
[1765033211870,0.05747,90084.0,90080.0,0.0111001]
[1765033212065,0.05747,90077.0,90076.0,0.0686207]
[1765033212265,0.05747,90077.0,90076.0,0.57272]
[1765033212770,0.05747,90077.0,90076.0,0.05752]
[1765033213068,0.007,90078.0,90072.0,0.3608]
[1765033213069,0.05747,90073.0,90072.0,0.3608]
[1765033213268,0.07379,90068.0,90067.0,0.00016657]
[1765033213468,0.43459,90068.0,90067.0,0.00016657]
[1765033213675,0.0685732,90056.0,90054.0,0.0792299]
[1765033213876,0.05747,90054.0,90053.0,0.3928]
[1765033214472,0.05747,90054.0,90053.0,0.42212]
[1765033214667,0.05747,90054.0,90053.0,0.05752]
[1765033216168,0.05847,90054.0,90053.0,0.05752]
[1765033220263,0.0287,90054.0,90053.0,0.05752]
[1765033220869,0.05847,90054.0,90053.0,0.05752]
[1765033225680,0.05847,90054.0,90053.0,0.1074299]
[1765033225977,0.0277,90048.0,90047.0,0.0792299]
[1765033226186,0.05747,90048.0,90047.0,0.6225499]
[1765033226384,0.05747,90048.0,90047.0,0.6518699]
[1765033227383,0.05747,90048.0,90047.0,0.05752]
[1765033227581,0.05747,90048.0,90047.0,0.07957375]
[1765033227782,0.05747,90048.0,90047.0,0.10777375]
[1765033228578,0.05747,90048.0,90047.0,0.13709375]
[1765033229281,0.05747,90048.0,90047.0,0.05752]
[1765033230086,0.05747,90048.0,90047.0,0.1371808]
[1765033231087,0.05747,90048.0,90047.0,0.0796608]
[1765033232683,0.05618,90044.0,90043.0,0.1360308]
[1765033233982,0.05618,90044.0,90043.0,0.1370308]
[1765033234789,0.05618,90044.0,90043.0,0.05737]
[1765033242798,0.05618,90044.0,90043.0,0.13709681]
[1765033243296,0.05618,90044.0,90043.0,0.05737]
[1765033247694,0.05618,90044.0,90043.0,0.13716793]
[1765033250210,0.05618,90044.0,90043.0,0.05737]
[1765033250911,0.05618,90044.0,90043.0,0.13718329]
[1765033251308,0.05618,90044.0,90043.0,0.05737]
[1765033251907,0.05618,90044.0,90043.0,0.13718868]
[1765033253298,0.05618,90044.0,90043.0,0.05737]
[1765033254112,0.05618,90044.0,90043.0,0.001]
[1765033254509,0.05618,90031.0,90030.0,0.07983882]
[1765033254710,0.05618,90031.0,90026.0,0.3608]
[1765033254711,0.0672864,90030.0,90029.0,0.07983882]
[1765033255913,0.05618,90027.0,90026.0,0.07983882]
[1765033256113,0.0672869,90026.0,90025.0,0.07983882]
[1765033256304,0.07301,90024.0,90023.0,0.13620882]
[1765033256509,0.07301,90024.0,90023.0,0.14746667]
[1765033257315,0.07301,90024.0,90023.0,0.06762785]
[1765033257609,0.07301,90024.0,90023.0,0.07983882]
[1765033257809,0.07301,90024.0,90019.0,0.07983882]
[1765033257810,0.05712,90021.0,90019.0,0.07983882]
[1765033258012,0.05712,90021.0,90014.0,0.09900941]
[1765033258013,0.0861581,90016.0,90015.0,0.10741882]
[1765033258216,0.0861581,90016.0,90015.0,0.05757]
[1765033259808,0.0861581,90016.0,90015.0,0.05857]
[1765033261308,0.0861581,90016.0,90015.0,0.001]
[1765033261909,0.4469581,90016.0,90015.0,0.001]
[1765033262817,0.066929,90009.0,90008.0,0.02934827]
[1765033263412,0.066929,90009.0,90008.0,0.00013827]
[1765033265114,0.02753,90009.0,90008.0,0.05818827]
[1765033265315,0.02753,90009.0,90008.0,0.06018827]
[1765033265708,0.05582,90009.0,90008.0,0.06018827]
[1765033269225,0.05582,90014.0,90013.0,0.05805]
[1765033269617,0.01793,90016.0,90008.0,0.37404727]
[1765033269618,0.05582,90009.0,90008.0,0.42098827]
[1765033271023,0.0669283,90015.0,90014.0,0.05805]
[1765033272220,0.0669283,90015.0,90014.0,0.05905]
[1765033273224,0.0669283,90015.0,90014.0,0.001]
[1765033273424,0.0669283,90015.0,90014.0,0.05905]
[1765033279430,0.0669283,90015.0,90014.0,0.03021]
[1765033279621,0.0669283,90015.0,90014.0,0.001]
[1765033281121,0.066929,90009.0,90008.0,0.00013827]
[1765033282422,0.066929,90009.0,90008.0,0.00113827]
[1765033282926,0.066929,90009.0,90008.0,0.03034827]
[1765033283527,0.066929,90009.0,90008.0,0.05918827]
[1765033284637,0.067929,90009.0,90008.0,0.05818827]
[1765033285828,0.067929,90009.0,90008.0,0.00013827]
[1765033291734,0.067929,90009.0,90008.0,0.05889827]
[1765033292238,0.067929,90009.0,90008.0,0.02934827]
[1765033292635,0.067929,90009.0,90008.0,0.00013827]
[1765033295743,0.067929,90009.0,90006.0,0.00027776]
[1765033295744,0.05643,90007.0,90006.0,0.00027776]
[1765033295938,0.41723,90007.0,90006.0,0.00027776]
[1765033296843,0.41732254,90007.0,90006.0,0.00027776]
[1765033298134,0.05643,89996.0,89995.0,0.07983882]
[1765033298540,0.07356,89995.0,89994.0,0.07983882]
[1765033298843,0.07356,89995.0,89994.0,0.10704882]
[1765033299035,0.07356,89995.0,89994.0,0.05676]
[1765033299640,0.07356,89995.0,89994.0,0.02721]
[1765033300548,0.05643,89994.0,89993.0,0.07983882]
[1765033300851,0.05643,89994.0,89993.0,0.13659882]
[1765033301345,0.029,89994.0,89993.0,0.13659882]
[1765033301848,0.029,89994.0,89993.0,0.13759882]
[1765033302042,0.029,89994.0,89993.0,0.05776]
[1765033303244,0.05643,90000.0,89999.0,0.0678702]
[1765033303746,0.07356,90000.0,89999.0,0.0678702]
[1765033304545,0.029,90000.0,89999.0,0.0678702]
[1765033305136,0.05743,90000.0,89999.0,0.0678702]
[1765033305338,0.07456,90000.0,89999.0,0.0678702]
[1765033308949,0.07456,90000.0,89999.0,0.14766651]
[1765033309450,0.05743,90000.0,89999.0,0.14766651]
[1765033310147,0.07456,90000.0,89999.0,0.0678702]
[1765033310350,0.07456,90000.0,89999.0,0.13666654]
[1765033310653,0.07456,90000.0,89999.0,0.10711654]
[1765033311050,0.07456,90000.0,89999.0,0.13666654]
[1765033311250,0.07456,90000.0,89999.0,0.05676]
[1765033311453,0.07456,90000.0,89999.0,0.13670121]
[1765033312050,0.07456,90000.0,89999.0,0.05676]
[1765033312252,0.05743,90000.0,89999.0,0.05676]
[1765033312751,0.07456,90000.0,89999.0,0.02721]
[1765033313143,0.07456,90000.0,89999.0,0.05676]
[1765033314247,0.07456,90000.0,89999.0,0.02721]
[1765033315146,0.05643,89994.0,89993.0,0.41756]
[1765033315842,0.05643,89994.0,89993.0,0.05676]
[1765033316049,0.05643,89994.0,89993.0,0.02721]
[1765033316746,0.05643,89994.0,89993.0,0.05596]
[1765033317147,0.05539,89989.0,89988.0,0.06721247]
[1765033317352,0.05539,89989.0,89988.0,0.02738]
[1765033317353,0.05552827,89989.0,89988.0,0.02738]
[1765033317662,0.05552827,89989.0,89988.0,0.05613]
[1765033318763,0.05652827,89989.0,89988.0,0.05613]
[1765033320256,0.05626,89984.0,89983.0,0.03855465]
[1765033320563,0.05735,89981.0,89980.0,0.15487941]
[1765033321058,0.05735,89981.0,89980.0,0.05587]
[1765033321759,0.05735,89981.0,89980.0,0.05687]
[1765033322256,0.05735,89981.0,89980.0,0.13677883]
[1765033322653,0.05735,89981.0,89980.0,0.001]
[1765033323253,0.05735,89981.0,89980.0,0.05687]
[1765033323649,0.05735,89981.0,89980.0,0.02819]
[1765033323850,0.05735,89981.0,89980.0,0.001]
[1765033326263,0.0684642,89967.0,89966.0,0.08018671]
[1765033326459,0.06857423,89967.0,89966.0,0.00027788]
[1765033327567,0.05746003,89967.0,89966.0,0.00227788]
[1765033327763,0.05746003,89967.0,89966.0,0.02946788]
[1765033327965,0.05746003,89967.0,89966.0,0.02746788]
[1765033328261,0.05746003,89967.0,89966.0,0.02846788]
[1765033328659,0.05746003,89967.0,89961.0,0.05]
[1765033328660,0.05735,89962.0,89961.0,0.05]
[1765033328862,0.41815,89962.0,89961.0,0.05]
[1765033329458,0.05735,89954.0,89953.0,0.00010525]
[1765033329654,0.418248,89954.0,89953.0,0.00010525]
[1765033330560,0.4293638,89954.0,89953.0,0.00010525]
[1765033330956,0.4293638,89954.0,89953.0,0.00110525]
[1765033332562,0.068468,89936.0,89935.0,0.06717435]
[1765033332768,0.068468,89936.0,89935.0,0.05587]
[1765033333568,0.00016677,89944.0,89941.0,0.05587]
[1765033333569,0.0684674,89942.0,89941.0,0.05587]
[1765033333766,0.05735,89942.0,89941.0,0.05587]
[1765033333965,0.05747787,89942.0,89941.0,0.05587]
[1765033335877,0.068468,89936.0,89935.0,0.05787]
[1765033336169,0.068468,89936.0,89935.0,0.05587]
[1765033336470,0.068468,89936.0,89932.0,0.41667]
[1765033336471,0.05735,89933.0,89932.0,0.41667]
[1765033336866,0.0111175,89940.0,89934.0,0.01657]
[1765033337071,0.0111175,89940.0,89939.0,0.05587]
[1765033337275,0.0684675,89940.0,89939.0,0.05587]
[1765033338375,0.0684675,89940.0,89939.0,0.05687]
[1765033339771,0.0854675,89940.0,89939.0,0.05687]
[1765033342569,0.0684675,89940.0,89939.0,0.05687]
[1765033345679,0.05735,89940.0,89939.0,0.05687]
[1765033347178,0.00012787,89942.0,89941.0,0.05587]
[1765033347781,0.02854787,89942.0,89941.0,0.05587]
[1765033347982,0.00012787,89942.0,89941.0,0.05587]
[1765033348584,0.02854787,89942.0,89941.0,0.05587]
[1765033348975,0.05747787,89942.0,89941.0,0.05587]
[1765033354290,0.00012787,89942.0,89941.0,0.05587]
[1765033354497,0.3608,89954.0,89953.0,0.05633]
[1765033354794,0.0393449,89962.0,89961.0,0.05633]
[1765033354994,0.0668649,89962.0,89961.0,0.05633]
[1765033355679,0.06697629,89962.0,89961.0,0.05633]
[1765033356386,0.06697629,89962.0,89961.0,0.02837]
[1765033356695,0.05575,89954.0,89953.0,0.05649677]
[1765033357992,0.05775,89954.0,89953.0,0.05649677]
[1765033359492,0.41855,89954.0,89953.0,0.05649677]
[1765033360482,0.41855,89954.0,89953.0,0.00016677]
[1765033361195,0.41855,89954.0,89953.0,0.02853677]
[1765033362195,0.41855,89954.0,89953.0,0.00016677]
[1765033363499,0.44402677,89954.0,89953.0,0.00016677]
[1765033365596,0.44202677,89954.0,89953.0,0.00016677]
[1765033365799,0.44502677,89954.0,89953.0,0.00116677]
[1765033366887,0.44502677,89954.0,89953.0,0.02953677]
[1765033367086,0.44502677,89954.0,89953.0,0.05749677]
[1765033367398,0.41955,89954.0,89953.0,0.05749677]
[1765033367990,0.41955,89954.0,89953.0,0.00116677]
[1765033372298,0.0704276,89940.0,89939.0,0.0584]
[1765033372513,0.07054325,89940.0,89939.0,0.0584]
[1765033374902,0.07154325,89940.0,89939.0,0.0584]
[1765033378209,0.03069565,89940.0,89939.0,0.0584]
[1765033378505,0.00111565,89940.0,89939.0,0.0584]
[1765033381007,0.00016677,89948.0,89947.0,0.0851466]
[1765033381909,0.00016677,89948.0,89947.0,0.6009466]
[1765033382498,0.00216677,89948.0,89947.0,0.6009466]
[1765033388314,0.00216677,89948.0,89947.0,0.9809466]
[1765033389615,0.00216677,89948.0,89947.0,0.6009466]
[1765033397220,0.00216677,89948.0,89947.0,1.0109466]
[1765033397415,0.00216677,89948.0,89947.0,0.1251466]